Workbook

Sheet Ewidencja przebiegu pojazdu
B1: EWIDENCJA PRZEBIEGU POJAZDU
C11: KILOMETRY | E11: ŁĄCZNA
C12: DO ROZLICZENIA | E12: KWOTA ZWROTU
C17: 2012-05-01 | E17: 2012-05-10
C19: OKRES | E19: OKRES
C20: POCZĄTEK | E20: KONIEC
C26: 54 | E26: 9,800
C28: KWOTA ZWROTU | E28: STAN LICZNIKA
C29: Stawka/km | E29: PRZY POPRZEDNIM TANKOWANIU

Sheet Dane ewidencji
B1: EWIDENCJA PRZEBIEGU POJAZDU
B5: DATA | C5: DZIAŁANIE | D5: STAN LICZNIKA 1 | E5: LOKALIZACJA | F5: STAN LICZNIKA 2 | G5: CEL | H5: ZWROT | I5: LITRY | J5: KOSZT | K5: DO ROZLICZENIA | L5: km/l | M5: STAWKA/KM | N5: UWAGI
B6: 2012-05-01 | C6: Wyjazd | D6: 10,123 | E6: Firma Stokrotka ul. Główna | F6: 10,130 | I6: 15.56 | J6: 64.11 zł | K6: =kilometry -> 7 | L6: =IF(OR(LEN(dane[[#This Row],[STAN LICZNIKA 2]]),dane[[#This Row],[STAN LICZNIKA 1]]=""),"",IFERROR(dane[[#This Row],[DO ROZLICZENIA]]/dane[[#This Row],[LITRY]],"")) ->  | M6: =IF(dane[[#This Row],[km/l]]="","",100*dane[[#This Row],[KOSZT]]/dane[[#This Row],[DO ROZLICZENIA]]) -> 
B7: 2012-05-01 | C7: Wyjazd | D7: 10,130 | E7: Biuro | F7: 10,200 | G7: ul. Wiśniowa | H7: Tak | K7: =kilometry -> 70 | L7: =IF(OR(LEN(dane[[#This Row],[STAN LICZNIKA 2]]),dane[[#This Row],[STAN LICZNIKA 1]]=""),"",IFERROR(dane[[#This Row],[DO ROZLICZENIA]]/dane[[#This Row],[LITRY]],"")) ->  | M7: =IF(dane[[#This Row],[km/l]]="","",100*dane[[#This Row],[KOSZT]]/dane[[#This Row],[DO ROZLICZENIA]]) -> 
B8: 2012-05-01 | C8: Wyjazd | D8: 10,200 | E8: Somonino | F8: 10,285 | G8: Biuro | H8: Tak | K8: =kilometry -> 85 | L8: =IF(OR(LEN(dane[[#This Row],[STAN LICZNIKA 2]]),dane[[#This Row],[STAN LICZNIKA 1]]=""),"",IFERROR(dane[[#This Row],[DO ROZLICZENIA]]/dane[[#This Row],[LITRY]],"")) ->  | M8: =IF(dane[[#This Row],[km/l]]="","",100*dane[[#This Row],[KOSZT]]/dane[[#This Row],[DO ROZLICZENIA]]) -> 
B9: 2012-05-02 | C9: Wyjazd | D9: 10,285 | E9: Biuro | F9: 10,450 | G9: Odrzewice | H9: Tak | K9: =kilometry -> 165 | L9: =IF(OR(LEN(dane[[#This Row],[STAN LICZNIKA 2]]),dane[[#This Row],[STAN LICZNIKA 1]]=""),"",IFERROR(dane[[#This Row],[DO ROZLICZENIA]]/dane[[#This Row],[LITRY]],"")) ->  | M9: =IF(dane[[#This Row],[km/l]]="","",100*dane[[#This Row],[KOSZT]]/dane[[#This Row],[DO ROZLICZENIA]]) -> 
B10: 2012-05-02 | C10: Paliwo | D10: 10,450 | E10: Shell | I10: 11.20 | J10: 55.42 zł | K10: =kilometry -> 650 | L10: =IF(OR(LEN(dane[[#This Row],[STAN LICZNIKA 2]]),dane[[#This Row],[STAN LICZNIKA 1]]=""),"",IFERROR(dane[[#This Row],[DO ROZLICZENIA]]/dane[[#This Row],[LITRY]],"")) -> 58.0 | M10: =IF(dane[[#This Row],[km/l]]="","",100*dane[[#This Row],[KOSZT]]/dane[[#This Row],[DO ROZLICZENIA]]) -> 8.5
B11: 2012-05-02 | C11: Wyjazd | D11: 10,500 | E11: Odrzewice | F11: 10,518 | G11: Biuro | H11: Tak | K11: =kilometry -> 18 | L11: =IF(OR(LEN(dane[[#This Row],[STAN LICZNIKA 2]]),dane[[#This Row],[STAN LICZNIKA 1]]=""),"",IFERROR(dane[[#This Row],[DO ROZLICZENIA]]/dane[[#This Row],[LITRY]],"")) ->  | M11: =IF(dane[[#This Row],[km/l]]="","",100*dane[[#This Row],[KOSZT]]/dane[[#This Row],[DO ROZLICZENIA]]) -> 
B12: 2012-05-03 | C12: Wyjazd | D12: 10,518 | E12: Biuro | F12: 10,745 | G12: Biuro | H12: Tak | K12: =kilometry -> 227 | L12: =IF(OR(LEN(dane[[#This Row],[STAN LICZNIKA 2]]),dane[[#This Row],[STAN LICZNIKA 1]]=""),"",IFERROR(dane[[#This Row],[DO ROZLICZENIA]]/dane[[#This Row],[LITRY]],"")) ->  | M12: =IF(dane[[#This Row],[km/l]]="","",100*dane[[#This Row],[KOSZT]]/dane[[#This Row],[DO ROZLICZENIA]]) -> 
B13: 2012-05-04 | C13: Paliwo | D13: 10,745 | E13: Firma Stokrotka ul. Główna | I13: 16.60 | J13: 69.24 zł | K13: =kilometry -> 295 | L13: =IF(OR(LEN(dane[[#This Row],[STAN LICZNIKA 2]]),dane[[#This Row],[STAN LICZNIKA 1]]=""),"",IFERROR(dane[[#This Row],[DO ROZLICZENIA]]/dane[[#This Row],[LITRY]],"")) -> 17.8 | M13: =IF(dane[[#This Row],[km/l]]="","",100*dane[[#This Row],[KOSZT]]/dane[[#This Row],[DO ROZLICZENIA]]) -> 23.5
B14: 2012-05-04 | C14: Wyjazd | D14: 10,745 | E14: Biuro | F14: 10,800 | G14: Witno | H14: Tak | K14: =kilometry -> 55 | L14: =IF(OR(LEN(dane[[#This Row],[STAN LICZNIKA 2]]),dane[[#This Row],[STAN LICZNIKA 1]]=""),"",IFERROR(dane[[#This Row],[DO ROZLICZENIA]]/dane[[#This Row],[LITRY]],"")) ->  | M14: =IF(dane[[#This Row],[km/l]]="","",100*dane[[#This Row],[KOSZT]]/dane[[#This Row],[DO ROZLICZENIA]]) -> 
B15: 2012-05-04 | C15: Wyjazd | D15: 10,800 | E15: Witno | F15: 10,875 | G15: Biuro | H15: Tak | K15: =kilometry -> 75 | L15: =IF(OR(LEN(dane[[#This Row],[STAN LICZNIKA 2]]),dane[[#This Row],[STAN LICZNIKA 1]]=""),"",IFERROR(dane[[#This Row],[DO ROZLICZENIA]]/dane[[#This Row],[LITRY]],"")) ->  | M15: =IF(dane[[#This Row],[km/l]]="","",100*dane[[#This Row],[KOSZT]]/dane[[#This Row],[DO ROZLICZENIA]]) -> 
B16: 2012-05-07 | C16: Wyjazd | D16: 10,875 | E16: Biuro | F16: 10,921 | G16: ul. Wiśniowa | H16: Tak | K16: =kilometry -> 46 | L16: =IF(OR(LEN(dane[[#This Row],[STAN LICZNIKA 2]]),dane[[#This Row],[STAN LICZNIKA 1]]=""),"",IFERROR(dane[[#This Row],[DO ROZLICZENIA]]/dane[[#This Row],[LITRY]],"")) ->  | M16: =IF(dane[[#This Row],[km/l]]="","",100*dane[[#This Row],[KOSZT]]/dane[[#This Row],[DO ROZLICZENIA]]) -> 
B17: 2012-05-07 | C17: Wyjazd | D17: 10,921 | E17: Somonino | F17: 10,969 | G17: Biuro | H17: Tak | K17: =kilometry -> 48 | L17: =IF(OR(LEN(dane[[#This Row],[STAN LICZNIKA 2]]),dane[[#This Row],[STAN LICZNIKA 1]]=""),"",IFERROR(dane[[#This Row],[DO ROZLICZENIA]]/dane[[#This Row],[LITRY]],"")) ->  | M17: =IF(dane[[#This Row],[km/l]]="","",100*dane[[#This Row],[KOSZT]]/dane[[#This Row],[DO ROZLICZENIA]]) -> 
B18: 2012-05-09 | C18: Wyjazd | D18: 10,969 | E18: Biuro | F18: 11,000 | G18: Dobrzyno | H18: Tak | K18: =kilometry -> 31 | L18: =IF(OR(LEN(dane[[#This Row],[STAN LICZNIKA 2]]),dane[[#This Row],[STAN LICZNIKA 1]]=""),"",IFERROR(dane[[#This Row],[DO ROZLICZENIA]]/dane[[#This Row],[LITRY]],"")) ->  | M18: =IF(dane[[#This Row],[km/l]]="","",100*dane[[#This Row],[KOSZT]]/dane[[#This Row],[DO ROZLICZENIA]]) -> 
B19: 2012-05-09 | C19: Wyjazd | D19: 11,000 | E19: Dobrzyno | F19: 11,100 | G19: Dom | H19: Nie | K19: =kilometry -> 100 | L19: =IF(OR(LEN(dane[[#This Row],[STAN LICZNIKA 2]]),dane[[#This Row],[STAN LICZNIKA 1]]=""),"",IFERROR(dane[[#This Row],[DO ROZLICZENIA]]/dane[[#This Row],[LITRY]],"")) ->  | M19: =IF(dane[[#This Row],[km/l]]="","",100*dane[[#This Row],[KOSZT]]/dane[[#This Row],[DO ROZLICZENIA]]) -> 

Sheet obliczenia (hidden)
A1: *** Ten arkusz pozostanie ukryty ***
I6: =OFFSET(I9,,Druga_oś="Koszt paliwa") -> Stawka/km
M7: 2
H8: Wyjazd | I8: Paliwo | J8: Paliwo | L8: Druga oś: | M8: =REPT("km/l",M7=1)&REPT("Koszt paliwa",M7=2) -> Koszt paliwa
H9: Przebyte kilometry | I9: km/l | J9: Stawka/km
C10: Kilometry do rozliczenia: | D10: =SUMIFS(dane[DO ROZLICZENIA],dane[ZWROT],"Tak",dane[DATA],">="&Początek_okresu,dane[DATA],"<="&Koniec_okresu) -> 820 | F10: 1 | G10: =Początek_okresu -> 2012-05-01 | H10: =SUMIFS(dane[DO ROZLICZENIA],dane[DATA],G10,dane[DZIAŁANIE],$H$8) -> 162 | I10: =IFERROR(AVERAGEIFS(dane[km/l],dane[DATA],G10,dane[DZIAŁANIE],$I$8),NA()) ->  | J10: =IFERROR(AVERAGEIFS(dane[STAWKA/KM],dane[DATA],G10,dane[DZIAŁANIE],$J$8),NA()) -> 
C11: Łączny zwrot wydatków: | D11: =D10*Zwrot_za_kilometr/100 -> 442.80 zł | F11: 2 | G11: =G10+1 -> 2012-05-02 | H11: =SUMIFS(dane[DO ROZLICZENIA],dane[DATA],G11,dane[DZIAŁANIE],$H$8) -> 183 | I11: =IFERROR(AVERAGEIFS(dane[km/l],dane[DATA],G11,dane[DZIAŁANIE],$I$8),NA()) -> 58.0 | J11: =IFERROR(AVERAGEIFS(dane[STAWKA/KM],dane[DATA],G11,dane[DZIAŁANIE],$J$8),NA()) -> 8.5
F12: 3 | G12: 2012-05-03 | H12: =SUMIFS(dane[DO ROZLICZENIA],dane[DATA],G12,dane[DZIAŁANIE],$H$8) -> 227 | I12: =IFERROR(AVERAGEIFS(dane[km/l],dane[DATA],G12,dane[DZIAŁANIE],$I$8),NA()) ->  | J12: =IFERROR(AVERAGEIFS(dane[STAWKA/KM],dane[DATA],G12,dane[DZIAŁANIE],$J$8),NA()) -> 
F13: 4 | G13: 2012-05-04 | H13: =SUMIFS(dane[DO ROZLICZENIA],dane[DATA],G13,dane[DZIAŁANIE],$H$8) -> 130 | I13: =IFERROR(AVERAGEIFS(dane[km/l],dane[DATA],G13,dane[DZIAŁANIE],$I$8),NA()) -> 17.8 | J13: =IFERROR(AVERAGEIFS(dane[STAWKA/KM],dane[DATA],G13,dane[DZIAŁANIE],$J$8),NA()) -> 23.5
F14: 5 | G14: 2012-05-05 | H14: =SUMIFS(dane[DO ROZLICZENIA],dane[DATA],G14,dane[DZIAŁANIE],$H$8) -> 0 | I14: =IFERROR(AVERAGEIFS(dane[km/l],dane[DATA],G14,dane[DZIAŁANIE],$I$8),NA()) ->  | J14: =IFERROR(AVERAGEIFS(dane[STAWKA/KM],dane[DATA],G14,dane[DZIAŁANIE],$J$8),NA()) -> 
F15: 6 | G15: 2012-05-06 | H15: =SUMIFS(dane[DO ROZLICZENIA],dane[DATA],G15,dane[DZIAŁANIE],$H$8) -> 0 | I15: =IFERROR(AVERAGEIFS(dane[km/l],dane[DATA],G15,dane[DZIAŁANIE],$I$8),NA()) ->  | J15: =IFERROR(AVERAGEIFS(dane[STAWKA/KM],dane[DATA],G15,dane[DZIAŁANIE],$J$8),NA()) -> 
F16: 7 | G16: 2012-05-07 | H16: =SUMIFS(dane[DO ROZLICZENIA],dane[DATA],G16,dane[DZIAŁANIE],$H$8) -> 94 | I16: =IFERROR(AVERAGEIFS(dane[km/l],dane[DATA],G16,dane[DZIAŁANIE],$I$8),NA()) ->  | J16: =IFERROR(AVERAGEIFS(dane[STAWKA/KM],dane[DATA],G16,dane[DZIAŁANIE],$J$8),NA()) -> 
F17: 8 | G17: 2012-05-08 | H17: =SUMIFS(dane[DO ROZLICZENIA],dane[DATA],G17,dane[DZIAŁANIE],$H$8) -> 0 | I17: =IFERROR(AVERAGEIFS(dane[km/l],dane[DATA],G17,dane[DZIAŁANIE],$I$8),NA()) ->  | J17: =IFERROR(AVERAGEIFS(dane[STAWKA/KM],dane[DATA],G17,dane[DZIAŁANIE],$J$8),NA()) -> 
F18: 9 | G18: 2012-05-09 | H18: =SUMIFS(dane[DO ROZLICZENIA],dane[DATA],G18,dane[DZIAŁANIE],$H$8) -> 131 | I18: =IFERROR(AVERAGEIFS(dane[km/l],dane[DATA],G18,dane[DZIAŁANIE],$I$8),NA()) ->  | J18: =IFERROR(AVERAGEIFS(dane[STAWKA/KM],dane[DATA],G18,dane[DZIAŁANIE],$J$8),NA()) -> 
F19: 10 | G19: 2012-05-10 | H19: =SUMIFS(dane[DO ROZLICZENIA],dane[DATA],G19,dane[DZIAŁANIE],$H$8) -> 0 | I19: =IFERROR(AVERAGEIFS(dane[km/l],dane[DATA],G19,dane[DZIAŁANIE],$I$8),NA()) ->  | J19: =IFERROR(AVERAGEIFS(dane[STAWKA/KM],dane[DATA],G19,dane[DZIAŁANIE],$J$8),NA()) -> 
F20: 11 | G20: 2012-05-11 | H20: =SUMIFS(dane[DO ROZLICZENIA],dane[DATA],G20,dane[DZIAŁANIE],$H$8) -> 0 | I20: =IFERROR(AVERAGEIFS(dane[km/l],dane[DATA],G20,dane[DZIAŁANIE],$I$8),NA()) ->  | J20: =IFERROR(AVERAGEIFS(dane[STAWKA/KM],dane[DATA],G20,dane[DZIAŁANIE],$J$8),NA()) -> 
F21: 12 | G21: 2012-05-12 | H21: =SUMIFS(dane[DO ROZLICZENIA],dane[DATA],G21,dane[DZIAŁANIE],$H$8) -> 0 | I21: =IFERROR(AVERAGEIFS(dane[km/l],dane[DATA],G21,dane[DZIAŁANIE],$I$8),NA()) ->  | J21: =IFERROR(AVERAGEIFS(dane[STAWKA/KM],dane[DATA],G21,dane[DZIAŁANIE],$J$8),NA()) -> 
F22: 13 | G22: 2012-05-13 | H22: =SUMIFS(dane[DO ROZLICZENIA],dane[DATA],G22,dane[DZIAŁANIE],$H$8) -> 0 | I22: =IFERROR(AVERAGEIFS(dane[km/l],dane[DATA],G22,dane[DZIAŁANIE],$I$8),NA()) ->  | J22: =IFERROR(AVERAGEIFS(dane[STAWKA/KM],dane[DATA],G22,dane[DZIAŁANIE],$J$8),NA()) -> 
F23: 14 | G23: 2012-05-14 | H23: =SUMIFS(dane[DO ROZLICZENIA],dane[DATA],G23,dane[DZIAŁANIE],$H$8) -> 0 | I23: =IFERROR(AVERAGEIFS(dane[km/l],dane[DATA],G23,dane[DZIAŁANIE],$I$8),NA()) ->  | J23: =IFERROR(AVERAGEIFS(dane[STAWKA/KM],dane[DATA],G23,dane[DZIAŁANIE],$J$8),NA()) -> 
F24: 15 | G24: 2012-05-15 | H24: =SUMIFS(dane[DO ROZLICZENIA],dane[DATA],G24,dane[DZIAŁANIE],$H$8) -> 0 | I24: =IFERROR(AVERAGEIFS(dane[km/l],dane[DATA],G24,dane[DZIAŁANIE],$I$8),NA()) ->  | J24: =IFERROR(AVERAGEIFS(dane[STAWKA/KM],dane[DATA],G24,dane[DZIAŁANIE],$J$8),NA()) -> 
F25: 16 | G25: 2012-05-16 | H25: =SUMIFS(dane[DO ROZLICZENIA],dane[DATA],G25,dane[DZIAŁANIE],$H$8) -> 0 | I25: =IFERROR(AVERAGEIFS(dane[km/l],dane[DATA],G25,dane[DZIAŁANIE],$I$8),NA()) ->  | J25: =IFERROR(AVERAGEIFS(dane[STAWKA/KM],dane[DATA],G25,dane[DZIAŁANIE],$J$8),NA()) -> 
F26: 17 | G26: 2012-05-17 | H26: =SUMIFS(dane[DO ROZLICZENIA],dane[DATA],G26,dane[DZIAŁANIE],$H$8) -> 0 | I26: =IFERROR(AVERAGEIFS(dane[km/l],dane[DATA],G26,dane[DZIAŁANIE],$I$8),NA()) ->  | J26: =IFERROR(AVERAGEIFS(dane[STAWKA/KM],dane[DATA],G26,dane[DZIAŁANIE],$J$8),NA()) -> 
F27: 18 | G27: 2012-05-18 | H27: =SUMIFS(dane[DO ROZLICZENIA],dane[DATA],G27,dane[DZIAŁANIE],$H$8) -> 0 | I27: =IFERROR(AVERAGEIFS(dane[km/l],dane[DATA],G27,dane[DZIAŁANIE],$I$8),NA()) ->  | J27: =IFERROR(AVERAGEIFS(dane[STAWKA/KM],dane[DATA],G27,dane[DZIAŁANIE],$J$8),NA()) -> 
F28: 19 | G28: 2012-05-19 | H28: =SUMIFS(dane[DO ROZLICZENIA],dane[DATA],G28,dane[DZIAŁANIE],$H$8) -> 0 | I28: =IFERROR(AVERAGEIFS(dane[km/l],dane[DATA],G28,dane[DZIAŁANIE],$I$8),NA()) ->  | J28: =IFERROR(AVERAGEIFS(dane[STAWKA/KM],dane[DATA],G28,dane[DZIAŁANIE],$J$8),NA()) -> 
F29: 20 | G29: 2012-05-20 | H29: =SUMIFS(dane[DO ROZLICZENIA],dane[DATA],G29,dane[DZIAŁANIE],$H$8) -> 0 | I29: =IFERROR(AVERAGEIFS(dane[km/l],dane[DATA],G29,dane[DZIAŁANIE],$I$8),NA()) ->  | J29: =IFERROR(AVERAGEIFS(dane[STAWKA/KM],dane[DATA],G29,dane[DZIAŁANIE],$J$8),NA()) -> 
F30: 21 | G30: 2012-05-21 | H30: =SUMIFS(dane[DO ROZLICZENIA],dane[DATA],G30,dane[DZIAŁANIE],$H$8) -> 0 | I30: =IFERROR(AVERAGEIFS(dane[km/l],dane[DATA],G30,dane[DZIAŁANIE],$I$8),NA()) ->  | J30: =IFERROR(AVERAGEIFS(dane[STAWKA/KM],dane[DATA],G30,dane[DZIAŁANIE],$J$8),NA()) -> 
F31: 22 | G31: 2012-05-22 | H31: =SUMIFS(dane[DO ROZLICZENIA],dane[DATA],G31,dane[DZIAŁANIE],$H$8) -> 0 | I31: =IFERROR(AVERAGEIFS(dane[km/l],dane[DATA],G31,dane[DZIAŁANIE],$I$8),NA()) ->  | J31: =IFERROR(AVERAGEIFS(dane[STAWKA/KM],dane[DATA],G31,dane[DZIAŁANIE],$J$8),NA()) -> 
F32: 23 | G32: 2012-05-23 | H32: =SUMIFS(dane[DO ROZLICZENIA],dane[DATA],G32,dane[DZIAŁANIE],$H$8) -> 0 | I32: =IFERROR(AVERAGEIFS(dane[km/l],dane[DATA],G32,dane[DZIAŁANIE],$I$8),NA()) ->  | J32: =IFERROR(AVERAGEIFS(dane[STAWKA/KM],dane[DATA],G32,dane[DZIAŁANIE],$J$8),NA()) -> 
F33: 24 | G33: 2012-05-24 | H33: =SUMIFS(dane[DO ROZLICZENIA],dane[DATA],G33,dane[DZIAŁANIE],$H$8) -> 0 | I33: =IFERROR(AVERAGEIFS(dane[km/l],dane[DATA],G33,dane[DZIAŁANIE],$I$8),NA()) ->  | J33: =IFERROR(AVERAGEIFS(dane[STAWKA/KM],dane[DATA],G33,dane[DZIAŁANIE],$J$8),NA()) -> 
F34: 25 | G34: 2012-05-25 | H34: =SUMIFS(dane[DO ROZLICZENIA],dane[DATA],G34,dane[DZIAŁANIE],$H$8) -> 0 | I34: =IFERROR(AVERAGEIFS(dane[km/l],dane[DATA],G34,dane[DZIAŁANIE],$I$8),NA()) ->  | J34: =IFERROR(AVERAGEIFS(dane[STAWKA/KM],dane[DATA],G34,dane[DZIAŁANIE],$J$8),NA()) -> 
F35: 26 | G35: 2012-05-26 | H35: =SUMIFS(dane[DO ROZLICZENIA],dane[DATA],G35,dane[DZIAŁANIE],$H$8) -> 0 | I35: =IFERROR(AVERAGEIFS(dane[km/l],dane[DATA],G35,dane[DZIAŁANIE],$I$8),NA()) ->  | J35: =IFERROR(AVERAGEIFS(dane[STAWKA/KM],dane[DATA],G35,dane[DZIAŁANIE],$J$8),NA()) -> 
F36: 27 | G36: 2012-05-27 | H36: =SUMIFS(dane[DO ROZLICZENIA],dane[DATA],G36,dane[DZIAŁANIE],$H$8) -> 0 | I36: =IFERROR(AVERAGEIFS(dane[km/l],dane[DATA],G36,dane[DZIAŁANIE],$I$8),NA()) ->  | J36: =IFERROR(AVERAGEIFS(dane[STAWKA/KM],dane[DATA],G36,dane[DZIAŁANIE],$J$8),NA()) -> 
F37: 28 | G37: 2012-05-28 | H37: =SUMIFS(dane[DO ROZLICZENIA],dane[DATA],G37,dane[DZIAŁANIE],$H$8) -> 0 | I37: =IFERROR(AVERAGEIFS(dane[km/l],dane[DATA],G37,dane[DZIAŁANIE],$I$8),NA()) ->  | J37: =IFERROR(AVERAGEIFS(dane[STAWKA/KM],dane[DATA],G37,dane[DZIAŁANIE],$J$8),NA()) -> 
F38: 29 | G38: 2012-05-29 | H38: =SUMIFS(dane[DO ROZLICZENIA],dane[DATA],G38,dane[DZIAŁANIE],$H$8) -> 0 | I38: =IFERROR(AVERAGEIFS(dane[km/l],dane[DATA],G38,dane[DZIAŁANIE],$I$8),NA()) ->  | J38: =IFERROR(AVERAGEIFS(dane[STAWKA/KM],dane[DATA],G38,dane[DZIAŁANIE],$J$8),NA()) -> 
F39: 30 | G39: 2012-05-30 | H39: =SUMIFS(dane[DO ROZLICZENIA],dane[DATA],G39,dane[DZIAŁANIE],$H$8) -> 0 | I39: =IFERROR(AVERAGEIFS(dane[km/l],dane[DATA],G39,dane[DZIAŁANIE],$I$8),NA()) ->  | J39: =IFERROR(AVERAGEIFS(dane[STAWKA/KM],dane[DATA],G39,dane[DZIAŁANIE],$J$8),NA()) -> 
F40: 31 | G40: 2012-05-31 | H40: =SUMIFS(dane[DO ROZLICZENIA],dane[DATA],G40,dane[DZIAŁANIE],$H$8) -> 0 | I40: =IFERROR(AVERAGEIFS(dane[km/l],dane[DATA],G40,dane[DZIAŁANIE],$I$8),NA()) ->  | J40: =IFERROR(AVERAGEIFS(dane[STAWKA/KM],dane[DATA],G40,dane[DZIAŁANIE],$J$8),NA()) -> 
F41: 32 | G41: 2012-06-01 | H41: =SUMIFS(dane[DO ROZLICZENIA],dane[DATA],G41,dane[DZIAŁANIE],$H$8) -> 0 | I41: =IFERROR(AVERAGEIFS(dane[km/l],dane[DATA],G41,dane[DZIAŁANIE],$I$8),NA()) ->  | J41: =IFERROR(AVERAGEIFS(dane[STAWKA/KM],dane[DATA],G41,dane[DZIAŁANIE],$J$8),NA()) -> 
F42: 33 | G42: 2012-06-02 | H42: =SUMIFS(dane[DO ROZLICZENIA],dane[DATA],G42,dane[DZIAŁANIE],$H$8) -> 0 | I42: =IFERROR(AVERAGEIFS(dane[km/l],dane[DATA],G42,dane[DZIAŁANIE],$I$8),NA()) ->  | J42: =IFERROR(AVERAGEIFS(dane[STAWKA/KM],dane[DATA],G42,dane[DZIAŁANIE],$J$8),NA()) -> 
F43: 34 | G43: =G42+1 -> 2012-06-03 | H43: =SUMIFS(dane[DO ROZLICZENIA],dane[DATA],G43,dane[DZIAŁANIE],$H$8) -> 0 | I43: =IFERROR(AVERAGEIFS(dane[km/l],dane[DATA],G43,dane[DZIAŁANIE],$I$8),NA()) ->  | J43: =IFERROR(AVERAGEIFS(dane[STAWKA/KM],dane[DATA],G43,dane[DZIAŁANIE],$J$8),NA()) -> 
F44: 35 | G44: 2012-06-04 | H44: =SUMIFS(dane[DO ROZLICZENIA],dane[DATA],G44,dane[DZIAŁANIE],$H$8) -> 0 | I44: =IFERROR(AVERAGEIFS(dane[km/l],dane[DATA],G44,dane[DZIAŁANIE],$I$8),NA()) ->  | J44: =IFERROR(AVERAGEIFS(dane[STAWKA/KM],dane[DATA],G44,dane[DZIAŁANIE],$J$8),NA()) -> 
F45: 36 | G45: 2012-06-05 | H45: =SUMIFS(dane[DO ROZLICZENIA],dane[DATA],G45,dane[DZIAŁANIE],$H$8) -> 0 | I45: =IFERROR(AVERAGEIFS(dane[km/l],dane[DATA],G45,dane[DZIAŁANIE],$I$8),NA()) ->  | J45: =IFERROR(AVERAGEIFS(dane[STAWKA/KM],dane[DATA],G45,dane[DZIAŁANIE],$J$8),NA()) -> 
F46: 37 | G46: 2012-06-06 | H46: =SUMIFS(dane[DO ROZLICZENIA],dane[DATA],G46,dane[DZIAŁANIE],$H$8) -> 0 | I46: =IFERROR(AVERAGEIFS(dane[km/l],dane[DATA],G46,dane[DZIAŁANIE],$I$8),NA()) ->  | J46: =IFERROR(AVERAGEIFS(dane[STAWKA/KM],dane[DATA],G46,dane[DZIAŁANIE],$J$8),NA()) -> 
F47: 38 | G47: 2012-06-07 | H47: =SUMIFS(dane[DO ROZLICZENIA],dane[DATA],G47,dane[DZIAŁANIE],$H$8) -> 0 | I47: =IFERROR(AVERAGEIFS(dane[km/l],dane[DATA],G47,dane[DZIAŁANIE],$I$8),NA()) ->  | J47: =IFERROR(AVERAGEIFS(dane[STAWKA/KM],dane[DATA],G47,dane[DZIAŁANIE],$J$8),NA()) -> 
F48: 39 | G48: 2012-06-08 | H48: =SUMIFS(dane[DO ROZLICZENIA],dane[DATA],G48,dane[DZIAŁANIE],$H$8) -> 0 | I48: =IFERROR(AVERAGEIFS(dane[km/l],dane[DATA],G48,dane[DZIAŁANIE],$I$8),NA()) ->  | J48: =IFERROR(AVERAGEIFS(dane[STAWKA/KM],dane[DATA],G48,dane[DZIAŁANIE],$J$8),NA()) -> 
F49: 40 | G49: 2012-06-09 | H49: =SUMIFS(dane[DO ROZLICZENIA],dane[DATA],G49,dane[DZIAŁANIE],$H$8) -> 0 | I49: =IFERROR(AVERAGEIFS(dane[km/l],dane[DATA],G49,dane[DZIAŁANIE],$I$8),NA()) ->  | J49: =IFERROR(AVERAGEIFS(dane[STAWKA/KM],dane[DATA],G49,dane[DZIAŁANIE],$J$8),NA()) -> 
F50: 41 | G50: 2012-06-10 | H50: =SUMIFS(dane[DO ROZLICZENIA],dane[DATA],G50,dane[DZIAŁANIE],$H$8) -> 0 | I50: =IFERROR(AVERAGEIFS(dane[km/l],dane[DATA],G50,dane[DZIAŁANIE],$I$8),NA()) ->  | J50: =IFERROR(AVERAGEIFS(dane[STAWKA/KM],dane[DATA],G50,dane[DZIAŁANIE],$J$8),NA()) -> 
F51: 42 | G51: 2012-06-11 | H51: =SUMIFS(dane[DO ROZLICZENIA],dane[DATA],G51,dane[DZIAŁANIE],$H$8) -> 0 | I51: =IFERROR(AVERAGEIFS(dane[km/l],dane[DATA],G51,dane[DZIAŁANIE],$I$8),NA()) ->  | J51: =IFERROR(AVERAGEIFS(dane[STAWKA/KM],dane[DATA],G51,dane[DZIAŁANIE],$J$8),NA()) -> 
F52: 43 | G52: 2012-06-12 | H52: =SUMIFS(dane[DO ROZLICZENIA],dane[DATA],G52,dane[DZIAŁANIE],$H$8) -> 0 | I52: =IFERROR(AVERAGEIFS(dane[km/l],dane[DATA],G52,dane[DZIAŁANIE],$I$8),NA()) ->  | J52: =IFERROR(AVERAGEIFS(dane[STAWKA/KM],dane[DATA],G52,dane[DZIAŁANIE],$J$8),NA()) -> 
F53: 44 | G53: 2012-06-13 | H53: =SUMIFS(dane[DO ROZLICZENIA],dane[DATA],G53,dane[DZIAŁANIE],$H$8) -> 0 | I53: =IFERROR(AVERAGEIFS(dane[km/l],dane[DATA],G53,dane[DZIAŁANIE],$I$8),NA()) ->  | J53: =IFERROR(AVERAGEIFS(dane[STAWKA/KM],dane[DATA],G53,dane[DZIAŁANIE],$J$8),NA()) -> 
F54: 45 | G54: 2012-06-14 | H54: =SUMIFS(dane[DO ROZLICZENIA],dane[DATA],G54,dane[DZIAŁANIE],$H$8) -> 0 | I54: =IFERROR(AVERAGEIFS(dane[km/l],dane[DATA],G54,dane[DZIAŁANIE],$I$8),NA()) ->  | J54: =IFERROR(AVERAGEIFS(dane[STAWKA/KM],dane[DATA],G54,dane[DZIAŁANIE],$J$8),NA()) -> 
F55: 46 | G55: 2012-06-15 | H55: =SUMIFS(dane[DO ROZLICZENIA],dane[DATA],G55,dane[DZIAŁANIE],$H$8) -> 0 | I55: =IFERROR(AVERAGEIFS(dane[km/l],dane[DATA],G55,dane[DZIAŁANIE],$I$8),NA()) ->  | J55: =IFERROR(AVERAGEIFS(dane[STAWKA/KM],dane[DATA],G55,dane[DZIAŁANIE],$J$8),NA()) -> 
F56: 47 | G56: 2012-06-16 | H56: =SUMIFS(dane[DO ROZLICZENIA],dane[DATA],G56,dane[DZIAŁANIE],$H$8) -> 0 | I56: =IFERROR(AVERAGEIFS(dane[km/l],dane[DATA],G56,dane[DZIAŁANIE],$I$8),NA()) ->  | J56: =IFERROR(AVERAGEIFS(dane[STAWKA/KM],dane[DATA],G56,dane[DZIAŁANIE],$J$8),NA()) -> 
F57: 48 | G57: 2012-06-17 | H57: =SUMIFS(dane[DO ROZLICZENIA],dane[DATA],G57,dane[DZIAŁANIE],$H$8) -> 0 | I57: =IFERROR(AVERAGEIFS(dane[km/l],dane[DATA],G57,dane[DZIAŁANIE],$I$8),NA()) ->  | J57: =IFERROR(AVERAGEIFS(dane[STAWKA/KM],dane[DATA],G57,dane[DZIAŁANIE],$J$8),NA()) -> 
F58: 49 | G58: 2012-06-18 | H58: =SUMIFS(dane[DO ROZLICZENIA],dane[DATA],G58,dane[DZIAŁANIE],$H$8) -> 0 | I58: =IFERROR(AVERAGEIFS(dane[km/l],dane[DATA],G58,dane[DZIAŁANIE],$I$8),NA()) ->  | J58: =IFERROR(AVERAGEIFS(dane[STAWKA/KM],dane[DATA],G58,dane[DZIAŁANIE],$J$8),NA()) -> 
F59: 50 | G59: 2012-06-19 | H59: =SUMIFS(dane[DO ROZLICZENIA],dane[DATA],G59,dane[DZIAŁANIE],$H$8) -> 0 | I59: =IFERROR(AVERAGEIFS(dane[km/l],dane[DATA],G59,dane[DZIAŁANIE],$I$8),NA()) ->  | J59: =IFERROR(AVERAGEIFS(dane[STAWKA/KM],dane[DATA],G59,dane[DZIAŁANIE],$J$8),NA()) -> 
F60: 51 | G60: 2012-06-20 | H60: =SUMIFS(dane[DO ROZLICZENIA],dane[DATA],G60,dane[DZIAŁANIE],$H$8) -> 0 | I60: =IFERROR(AVERAGEIFS(dane[km/l],dane[DATA],G60,dane[DZIAŁANIE],$I$8),NA()) ->  | J60: =IFERROR(AVERAGEIFS(dane[STAWKA/KM],dane[DATA],G60,dane[DZIAŁANIE],$J$8),NA()) -> 
F61: 52 | G61: 2012-06-21 | H61: =SUMIFS(dane[DO ROZLICZENIA],dane[DATA],G61,dane[DZIAŁANIE],$H$8) -> 0 | I61: =IFERROR(AVERAGEIFS(dane[km/l],dane[DATA],G61,dane[DZIAŁANIE],$I$8),NA()) ->  | J61: =IFERROR(AVERAGEIFS(dane[STAWKA/KM],dane[DATA],G61,dane[DZIAŁANIE],$J$8),NA()) -> 
F62: 53 | G62: 2012-06-22 | H62: =SUMIFS(dane[DO ROZLICZENIA],dane[DATA],G62,dane[DZIAŁANIE],$H$8) -> 0 | I62: =IFERROR(AVERAGEIFS(dane[km/l],dane[DATA],G62,dane[DZIAŁANIE],$I$8),NA()) ->  | J62: =IFERROR(AVERAGEIFS(dane[STAWKA/KM],dane[DATA],G62,dane[DZIAŁANIE],$J$8),NA()) -> 
F63: 54 | G63: 2012-06-23 | H63: =SUMIFS(dane[DO ROZLICZENIA],dane[DATA],G63,dane[DZIAŁANIE],$H$8) -> 0 | I63: =IFERROR(AVERAGEIFS(dane[km/l],dane[DATA],G63,dane[DZIAŁANIE],$I$8),NA()) ->  | J63: =IFERROR(AVERAGEIFS(dane[STAWKA/KM],dane[DATA],G63,dane[DZIAŁANIE],$J$8),NA()) -> 
F64: 55 | G64: 2012-06-24 | H64: =SUMIFS(dane[DO ROZLICZENIA],dane[DATA],G64,dane[DZIAŁANIE],$H$8) -> 0 | I64: =IFERROR(AVERAGEIFS(dane[km/l],dane[DATA],G64,dane[DZIAŁANIE],$I$8),NA()) ->  | J64: =IFERROR(AVERAGEIFS(dane[STAWKA/KM],dane[DATA],G64,dane[DZIAŁANIE],$J$8),NA()) -> 
F65: 56 | G65: 2012-06-25 | H65: =SUMIFS(dane[DO ROZLICZENIA],dane[DATA],G65,dane[DZIAŁANIE],$H$8) -> 0 | I65: =IFERROR(AVERAGEIFS(dane[km/l],dane[DATA],G65,dane[DZIAŁANIE],$I$8),NA()) ->  | J65: =IFERROR(AVERAGEIFS(dane[STAWKA/KM],dane[DATA],G65,dane[DZIAŁANIE],$J$8),NA()) -> 
F66: 57 | G66: 2012-06-26 | H66: =SUMIFS(dane[DO ROZLICZENIA],dane[DATA],G66,dane[DZIAŁANIE],$H$8) -> 0 | I66: =IFERROR(AVERAGEIFS(dane[km/l],dane[DATA],G66,dane[DZIAŁANIE],$I$8),NA()) ->  | J66: =IFERROR(AVERAGEIFS(dane[STAWKA/KM],dane[DATA],G66,dane[DZIAŁANIE],$J$8),NA()) -> 
F67: 58 | G67: 2012-06-27 | H67: =SUMIFS(dane[DO ROZLICZENIA],dane[DATA],G67,dane[DZIAŁANIE],$H$8) -> 0 | I67: =IFERROR(AVERAGEIFS(dane[km/l],dane[DATA],G67,dane[DZIAŁANIE],$I$8),NA()) ->  | J67: =IFERROR(AVERAGEIFS(dane[STAWKA/KM],dane[DATA],G67,dane[DZIAŁANIE],$J$8),NA()) -> 
F68: 59 | G68: 2012-06-28 | H68: =SUMIFS(dane[DO ROZLICZENIA],dane[DATA],G68,dane[DZIAŁANIE],$H$8) -> 0 | I68: =IFERROR(AVERAGEIFS(dane[km/l],dane[DATA],G68,dane[DZIAŁANIE],$I$8),NA()) ->  | J68: =IFERROR(AVERAGEIFS(dane[STAWKA/KM],dane[DATA],G68,dane[DZIAŁANIE],$J$8),NA()) -> 
F69: 60 | G69: 2012-06-29 | H69: =SUMIFS(dane[DO ROZLICZENIA],dane[DATA],G69,dane[DZIAŁANIE],$H$8) -> 0 | I69: =IFERROR(AVERAGEIFS(dane[km/l],dane[DATA],G69,dane[DZIAŁANIE],$I$8),NA()) ->  | J69: =IFERROR(AVERAGEIFS(dane[STAWKA/KM],dane[DATA],G69,dane[DZIAŁANIE],$J$8),NA()) -> 
